Cogmind - Beta 16 @@@ ROGUE MODE // 2025.12.21 @ 23:56:35 Player: PE-P51 Result: Destroyed by 6S-NMY(R) with Subdweller Beam Cannon Performance ------------- Evolutions (0) 0 Regions Visited (2) 400 Robots Destroyed (20) 100 Value Destroyed (644) 644 Prototype IDs (14) 280 Alien Tech Used (0) 0 Bonus (0) 0 TOTAL SCORE: 1424 Bonus ------- None Cogmind --------- Core Integrity 0/250 Matter 268/300 Energy 79/100 System Corruption 0% Temperature Cool (9) Movement Treading (320) Ox2 Location -10/Subcaves Parts ------- > --- POWER (1) -------- Subdweller Power Source > --- PROPULSION (2) --- Light Treads Light Treads > --- UTILITY (2) ------ Huge Storage Unit Targeting Computer > --- WEAPON (2) ------- Subdweller Laser Subdweller Machine Gun > --- INVENTORY (25) --- Subdweller Power Source Arachnoskeleton Subdweller Monowheel Subdweller Monowheel Subdweller Monowheel Subdweller Optics Subdweller Optics Subdweller Optics Subdweller Optics Subdweller Optics Light Armor Plating Scrap Shield Salvaging Laser Assault Rifle Light Assault Rifle Subdweller Machine Gun Light Cannon Subdweller Shrapnel Launcher Subdweller Shrapnel Launcher Makeshift Spear Shrapnel Trap Peak State ------------ > --- POWER ------------ Subdweller Power Source > --- PROPULSION ------- Light Treads Light Treads > --- UTILITY ---------- Huge Storage Unit Targeting Computer > --- WEAPON ----------- Subdweller Laser Subdweller Machine Gun > --- INVENTORY -------- Subdweller Power Source Light Treads Arachnoskeleton Subdweller Monowheel Subdweller Monowheel Subdweller Monowheel Subdweller Optics Subdweller Optics Subdweller Optics Subdweller Optics Subdweller Optics Light Armor Plating Scrap Shield Salvaging Laser Assault Rifle Light Assault Rifle Subdweller Machine Gun Light Cannon Subdweller Shrapnel Launcher Subdweller Shrapnel Launcher Makeshift Spear Shrapnel Trap [Rating: 16] Favorites ----------- Power Subdweller Power Source Engine Subdweller Power Source Propulsion Light Treads Treads Light Treads Leg Aluminum Leg Utility Targeting Computer Device Sensor Array Storage Huge Storage Unit Processor Targeting Computer Weapon Subdweller Laser Energy Gun Subdweller Laser Ballistic Gun Subdweller Machine Gun Ballistic Cannon Light Cannon Build | -11 -10 -10 ------- Run | Yrd Mat Sub Slots Evolved . | . . . Power . | . . . Propulsion . | . . . Utility . | . . . Weapon . | . . . Parts Attached 21 | . 10 11 Power 6 | . 2 4 Engine 6 | . 2 4 Core . | . . . Reactor . | . . . Propulsion 3 | . . 3 Treads 3 | . . 3 Leg . | . . . Wheel . | . . . Hover . | . . . Flight . | . . . Utility 4 | . 3 1 Device 1 | . 1 . Storage 2 | . 1 1 Processor 1 | . 1 . Hackware . | . . . Protection . | . . . Artifact . | . . . Weapon 8 | . 5 3 Energy Gun 2 | . 1 1 Energy Cannon . | . . . Ballistic Gun 4 | . 2 2 Ballistic Cannon 2 | . 2 . Launcher . | . . . Special Weapon . | . . . Impact Weapon . | . . . Slashing Weapon . | . . . Piercing Weapon . | . . . Special Melee Weapon . | . . . Unidentified Prototypes . | . . . Parts Lost 7 | . . 7 Power 3 | . . 3 Propulsion 3 | . . 3 Utility . | . . . Weapon 1 | . . 1 Highest Loss Streak 3 | . . 3 To Critical Strikes . | . . . Average Backups 18 | . 11 19 Power 1 | . 1 1 Propulsion 4 | . 4 4 Utility 5 | . 1 6 Weapon 7 | . 3 7 Tool/Special . | . . . Unused Backups 29 | . 5 24 Power 1 | . 1 . Propulsion 11 | . 2 9 Utility 12 | . 2 10 Weapon 5 | . . 5 Tool/Special . | . . . Average Slot Usage (%) 99 | . 99 99 Engine 13 | . 14 13 Treads 22 | . . 27 Leg 5 | . 28 . Storage 14 | . 14 14 Processor 13 | . 13 14 Energy Gun 11 | . 5 13 Ballistic Gun 13 | . 22 11 Ballistic Cannon 2 | . . 3 Peak Build Rating 16 | . 8 16 Average Rating 12 | . 7 14 On Entrance 6 | 6 6 8 Avg Prop Armor Cover (%) . | . . . Naked Turns . | . . . Heaviest Build 93 | 12 51 93 Greatest Support 40 | 20 20 40 Greatest Overweight (x) 2 | . 2 2 Average Overweight (x) 1 | . 1 1 Largest Inventory Capacity 25 | . 20 25 Average Capacity 22 | . 17 24 Most Carried 25 | . 14 25 Average Carried 20 | . 11 22 Final Capacity 25 | 8 20 25 Final Carried 24 | 6 14 24 Class Distribution -------------------- 100% | Mutant Dominant Class ---------------- Mutant | -10/Materials Mutant | -10/Subcaves Resources | -11 -10 -10 ----------- Run | Yrd Mat Sub Matter Collected 918 | 185 215 518 Remotely . | . . . Salvage Created 767 | . 336 431 Parts 45 | . 14 31 Haulers Intercepted 1 | . 1 . Recyclers Shooed 2 | . 2 . Parts Field Recycled . | . . . Retrieved Matter . | . . . Parts Self-Destructed 7 | . . 7 Prevented . | . . . Parts Restored . | . . . Kills | -11 -10 -10 ------- Run | Yrd Mat Sub Combat Hostiles Destroyed 16 | . 4 12 Guns 9 | . 4 5 Cannons 7 | . . 7 Classes Destroyed 7 | . 5 2 Builder 1 | . 1 . Hauler 1 | . 1 . Recycler 1 | . 1 . Operator 1 | . 1 . Grunt 5 | . 4 1 Sentry 1 | . . 1 Subdweller 10 | . . 10 Best Kill Streak 3 | . 2 3 Combat Bots Only 3 | . 1 3 Max Kills in Single Turn 1 | . 1 1 Gunslinging . | . . . Exploded . | . . . Melee . | . . . Uniques/NPCs Destroyed . | . . . Combat | -11 -10 -10 -------- Run | Yrd Mat Sub Hostile Shots Fired 115 | . 32 83 Missed 34 | . 3 31 Hits 81 | . 29 52 Projectile 81 | . 29 52 AOE 6 | . . 6 Critical Strikes 2 | . . 2 Damage Taken 1498 | . 326 1172 Core 257 | . 57 200 Absorbed by Shields . | . . . Core Remaining (%) 100 | 100 . . Volleys Fired 165 | . 55 110 Largest 2 | . 2 2 Hottest 90 | . 70 90 Shots Fired 281 | . 91 190 Gun 191 | . 91 100 Cannon 90 | . . 90 Launcher . | . . . Special . | . . . Kinetic 182 | . 60 122 Thermal 99 | . 31 68 Explosive . | . . . Electromagnetic . | . . . Robot Hit Streak 11 | . 10 11 Robot Miss Streak 5 | . 5 3 Penetration Max . | . . . Secondary Targets 1 | . . 1 Max Gunslinging Chain 1 | . . 1 Shots Hit Robots 114 | . 60 54 Core Hits 40 | . 18 22 Critical Kills . | . . . Critical Parts Destroyed 1 | . . 1 Critical Strikes 1 | . . 1 Destroy 1 | . . 1 Melee Attacks . | . . . Impact . | . . . Slashing . | . . . Piercing . | . . . Sneak Attacks . | . . . Combat Hostiles . | . . . Follow-up Attacks . | . . . Damage Inflicted 1682 | . 692 990 Guns 1292 | . 681 611 Cannons 379 | . . 379 Explosions . | . . . Melee . | . . . Ramming 11 | . 11 . Kinetic 1083 | . 526 557 Thermal 588 | . 155 433 Explosive . | . . . Electromagnetic . | . . . Impact . | . . . Slashing . | . . . Piercing . | . . . Highest Corruption . | . . . Average Corruption . | . . . Corruption Purged . | . . . Corruption Blocked . | . . . Overload Shots . | . . . Overflow Damage . | . . . Projectiles . | . . . Explosions . | . . . Melee . | . . . Knockbacks 5 | . . 5 Impact . | . . . Kinetic 5 | . . 5 Secondary . | . . . Self-Inflicted Damage . | . . . Shots . | . . . Rammed . | . . . Targets Rammed 4 | . 4 . Kicked 4 | . 4 . Crushed . | . . . Highest Temperature 36 | . 36 . Average Temperature 11 | . 11 . Received Heat Transfer 348 | . 174 174 Siege Activations . | . . . Martial Activations . | . . . Shielding Activations . | . . . Robots Disrupted . | . . . Combat Hostiles . | . . . Robots Corrupted . | . . . Combat Hostiles . | . . . Parts Fried . | . . . Impact Corruptions . | . . . Robots Melted . | . . . Combat Hostiles . | . . . Parts Melted 1 | . 1 . Heat Transferred 935 | . 435 500 Parts Sabotaged . | . . . Parts Stolen . | . . . Parts Stripped . | . . . Power Chain Reactions . | . . . Alert | -11 -10 -10 ------- Run | Yrd Mat Sub Maximum Alert Level . | . . . Low Security (%) 100 | . 100 . Level 1 . | . . . Level 2 . | . . . Level 3 . | . . . Level 4 . | . . . Level 5 . | . . . High Security . | . . . Max Security . | . . . Peak Influence 76 | . 76 . Initial . | . . . Average 10 | . 10 . Influence Increases 315 | . 245 70 Destroy 0b10 Robot/C 120 | . 80 40 Destroy 0b10 Robot/NC 20 | . 20 . Destroy Leader 32 | . 32 . Successful Hack 37 | . 37 . Select Force Hacks 60 | . 60 . Destroy Structure 1 | . 1 . Lose Combat Pursuer 45 | . 15 30 Influence Decreases 315 | . 245 70 Time Decay 305 | . 245 60 Lost Part 10 | . . 10 Squads Dispatched 5 | . 5 . Investigation 4 | . 4 . Extermination . | . . . Reinforcement 1 | . 1 . Assault . | . . . Garrison . | . . . Intercept . | . . . Searches Triggered . | . . . Construction Impeded . | . . . Haulers Reinforced . | . . . Active Scanning Responses . | . . . Cargo Convoy Interrupts . | . . . Stealth | -11 -10 -10 --------- Run | Yrd Mat Sub Distress Signals 1 | . 1 . Communications Jammed . | . . . Distress Signals . | . . . Times Spotted 50 | . 34 16 Peak Tracking Total 3 | . 3 2 Tactical Retreats 2 | . 1 1 Traps | -11 -10 -10 ------- Run | Yrd Mat Sub Traps Triggered 1 | . 1 . Indirectly . | . . . Trap Hack Attempts . | . . . Triggered . | . . . Disarmed . | . . . Reprogrammed . | . . . Reused . | . . . Traps Extracted . | . . . Installed . | . . . Triggered . | . . . Most Traps Carried 1 | . . 1 Machines | -11 -10 -10 ---------- Run | Yrd Mat Sub Machines Disabled 1 | . . 1 Max in Single Turn 1 | . . 1 Machines Repaired . | . . . Machines Dismantled . | . . . Machines Sabotaged . | . . . Overloaded Fab Kills . | . . . Hacking | -11 -10 -10 --------- Run | Yrd Mat Sub Machines Accessed 11 | . 9 2 Terminals 7 | . 7 . Fabricators . | . . . Repair Stations . | . . . Recycling Units 2 | . 2 . Scanalyzers . | . . . Garrison Access . | . . . Total Hacks 29 | . 27 2 Successful 13 | . 11 2 Failed 15 | . 15 . Catastrophic 5 | . 5 . Database Lockouts 1 | . 1 . Manual 13 | . 13 . Terminals 21 | . 21 . Fabricators . | . . . Repair Stations . | . . . Recycling Units 6 | . 6 . Scanalyzers . | . . . Garrison Access . | . . . Terminal Hacks 8 | . 6 2 Robot Analysis 3 | . 3 . Prototype ID Bank 1 | . 1 . Open Door 1 | . . 1 Dispatch Records 1 | . 1 . Hauler Manifests 1 | . 1 . Proto ID Catalog 1 | . . 1 Fabricator Hacks . | . . . Repair Station Hacks . | . . . Recycling Unit Hacks 2 | . 2 . Retrieve Components 2 | . 2 . Scanalyzer . | . . . Garrison Access Hacks . | . . . Unauthorized Hacks 3 | . 3 . Terminals 1 | . 1 . Operators 1 | . 1 . Fabricators . | . . . Repair Stations . | . . . Recycling Units 2 | . 2 . Tunnel 2 | . 2 . Scanalyzers . | . . . Garrison Access . | . . . Data Cores Recovered . | . . . Used . | . . . Hacking Detections 6 | . 6 . Full Trace Events . | . . . Feedback Events . | . . . Feedback Blocked . | . . . Robot Schematics Acquired . | . . . Robots Built . | . . . Authchips . | . . . Time . | . . . Total Robot Build Rating . | . . . Part Schematics Acquired . | . . . Parts Built . | . . . Authchips . | . . . Time . | . . . Total Part Build Rating . | . . . Part Studies Acquired . | . . . Parts Repaired . | . . . Time . | . . . Parts Recycled . | . . . Recycled Matter . | . . . Retrieved Matter . | . . . Retrieved Components 11 | . 11 . Parts Scanalyzed . | . . . Part Schematics Acquired . | . . . Parts Damaged . | . . . Bothacking | -11 -10 -10 ------------ Run | Yrd Mat Sub Used RIF Installer . | . . . Robots Hacked . | . . . Non-combat . | . . . Combat . | . . . Robot Hacks Applied . | . . . Relay Couplers Released . | . . . Fabnet Peak Effective % . | . . . Robots Rewired . | . . . Allies Hacked . | . . . Hacks Repelled . | . . . Allies | -11 -10 -10 -------- Run | Yrd Mat Sub Total Allies . | . . . Largest Group . | . . . Highest-Rated Group . | . . . Highest-Rated Ally . | . . . Total Orders . | . . . Ally Attacks . | . . . Total Damage . | . . . Kills . | . . . Allies Corrupted . | . . . Allies Melted . | . . . Intel | -11 -10 -10 ------- Run | Yrd Mat Sub Active Infowar (turns) 25 | . 25 . Sensors 25 | . 25 . Robot Analysis Total 3 | . 3 . Derelict Logs Recovered 1 | . . 1 Drone Launches . | . . . Drone Recoveries . | . . . Exploration | -11 -10 -10 ------------- Run | Yrd Mat Sub Turns Passed 9462 | . 1811 7651 Spaces Moved 2843 | 1 720 2122 Core . | . . . Treads 2086 | . . 2086 Legs 757 | 1 720 36 Wheels . | . . . Hover . | . . . Flight . | . . . Fastest Speed 120 | 120 120 240 Average Speed 282 | 120 222 303 Slowest Speed 320 | 120 260 320 Overloaded Moves . | . . . Propulsion Burnouts . | . . . Robots Hopped . | . . . Potential Cave-ins . | . . . Cave-ins Triggered . | . . . Exploration Rate (%) 62 | 2 98 87 Regions Visited 2 Branch Regions 1 Pre-discovered Areas 3 | . 2 1 Known Exits Taken . | . . . Unknown Exits Taken 2 | 1 1 . Scrap Searched 3 | . . 3 Spaces Dug 11 | . . 11 Terrain Destroyed 17 | . . 17 Melee . | . . . Projectile 17 | . . 17 AOE . | . . . Terrain Rammed . | . . . Walls Destroyed . | . . . Machines Disabled . | . . . Actions | -11 -10 -10 --------- Run | Yrd Mat Sub Total 3995 | . 841 3154 Wait 915 | . 43 872 Move 2841 | . 719 2122 Hop . | . . . Pick Up 31 | . 7 24 Fast Attach 3 | . 2 1 Attach 6 | . . 6 Detach . | . . . Swap 15 | . 8 7 Drop 15 | . 3 12 Fire 165 | . 55 110 Melee . | . . . Ram . | . . . Kick 4 | . 4 . Crush . | . . . Escape Stasis . | . . . Rewire . | . . . Trap . | . . . Miscellaneous . | . . . Route ------- -11/Scrapyard -10/Materials (discovered 5 exits: [*Mat x3] / [*Min] / *Sub) -10/Subcaves (discovered 3 exits: [*Mat x2] / [*Rec]) History --------- Turn | Location | Event 1 | -11/Scrapyard | Discovered new exit (range 0) 1 | -11/Scrapyard | Entered Materials 2 | -10/Materials | Met a group of wandering Federalists 140 | -10/Materials | Discovered new exit (range 9) 164 | -10/Materials | Central database locked down 305 | -10/Materials | Discovered new exit (range 12) 313 | -10/Materials | Build established: Mutant 635 | -10/Materials | Discovered new exit (range 13) 906 | -10/Materials | Discovered new exit (range 4) 1232 | -10/Materials | Discovered new exit (range 15) 1812 | -10/Materials | Entered Subcaves 1813 | -10/Subcaves | Continued accompanying wandering Federalists (4) 1926 | -10/Subcaves | Core integrity fell below 50% 1933 | -10/Subcaves | Lost 6 allies 1950 | -10/Subcaves | Lost 3 parts (1p2n) 1966 | -10/Subcaves | Learned location of Zion (-7) 2014 | -10/Subcaves | A swath of the cavern ceiling suddenly collapsed 2295 | -10/Subcaves | Shifting Twisted Machinery released Sub. Shrapnel Launcher 2300 | -10/Subcaves | Shifting Twisted Machinery released Shrapnel Trap 2632 | -10/Subcaves | Visited 4L-MR0's lab 2673 | -10/Subcaves | Found Arachnoskeleton 2982 | -10/Subcaves | Ambushed by Subdweller buried in earth 2986 | -10/Subcaves | Ambushed by Subdweller buried in earth 3251 | -10/Subcaves | Core integrity fell below 20% 4399 | -10/Subcaves | Discovered new exit (range 9) 4410 | -10/Subcaves | Shifting Twisted Machinery released Scrap Shield 4422 | -10/Subcaves | Shifting Twisted Machinery released Sub. Power Source 4564 | -10/Subcaves | Discovered new exit (range 11) 4567 | -10/Subcaves | Discovered new exit (range 13) 9463 | -10/Subcaves | Destroyed by 6S-NMY(R) with Subdweller Beam Cannon Last Messages --------------- 04938_ Lgt. Treads destroyed. 04942_ Hvy. Assault Rifle fries itself beyond repair. 04942_ G-34 Mercenary destroyed. 04945_ Beam Rifle fries itself beyond repair. 04947_ Subatomizers dissect the Lgt. Armor Plating. 04948_ Lgt. Armor Plating fries itself beyond repair. 04952_ Acquired 14 matter. 04956_ Sml. Laser fries itself beyond repair. 07292_ Sub. Power Source shoots sparks and powers down. 08190_ Connecting with UFD SUBCON Station... >>Open Door Sealed Heavy Doors opened. 08598_ HI-W7Z(R) destroyed. 08598_ Switching to secondary target: G8-8NE(R). 08601_ G8-8NE(R) destroyed. 08786_ Subatomizers dissect the Sub. Monowheel. 08800_ Acquired 28 matter. 08823_ Subatomizers dissect the Disposable Heat Sink. 09069_ Sub. Machine Gun shoots sparks and powers down. 09279_ LC-ODQ(u) tweaks Twisted Machinery. Map ----- +----------------------------------------------------+ | ?????????????## ##??## #????????????? | | ?????????????# #### #????????????? | | ?????????????# ## ##????????????? | | ?????????????## #?????????????? | | ??????????????# ### #?????????????? | | ??????????????####### #### #????????????? | | ???????????????????# ##??######????????????? | | ???????????????????# " #?????????????????????? | | ???????????????????# """ ##????????????????????? | | ???????????????????## """ #????????????????????? | | ????????????????????## " #????????????????????? | | ?????????????????????# #????????????????????? | | ????????????????##???## #????????????????????? | | ????????????????# #??## #????????????????????? | | ????????????????# ### "##???????????????????? | | ????????????????# ""#???????????????????? | | ???????????####### """""""##???????????????????? | | ??????????## ### #####??????????????????? | | ????????### ## ##### ##?????????????????? | | ????????# #??# #?????????????????? | | ?????#### ##?##" #?????????????????? | | ?????# " #?## "#?????????????????? | | ?????# """"## """ ### ##?????????????????? | | ?????## " ### "" ## #??????????????????? | | ?????## #" ##?## " #####??????????????? | | ?????# ##" #???##### " @ R ## ##?????????????? | | ?????## "##""""??????######## #?????????????? | | ?????## ### ????????????# #?????????????? | | ?????# "# # ## ???????????## ##????????????? | | ?????## #####? #????????????# #????????????? | | ????## "#### "#????????????# #????????????? | | ????# " """??#?????????## #????????????? | | ????# " """ #?# ??##### ####????????????? | | ???## "" # #?## ## ###???????????????? | | ???# " ""##?##?# ##????????????????? | | ???#### ""##??? ##???????????????? | | ??????#####???? #???????????????? | | ???????????????? ##???????????????? | | ???????????????? #### ##???????????????? | | ????????????????? ???## ##??????????????? | | ????????????????? ??????# #??????????????? | | ????????????????? ???????# ##?????????????? | | ?????????????????? ????????# ##????????????? | | ???????????????????#?????????# #????????????? | | ?????????????????????????????# ##????????????? | | ?????????????????????????????# ####?????????????? | | ????????????????????????????## ##????????????????? | | ????????????????????????????#"""#????????????????? | | ????????????????????????????### ##???????????????? | | ?????????????????????????????#"""#???????????????? | +----------------------------------------------------+ Best States ------------- Heat Dissipation 25 Energy Generation 15 Energy Capacity 250 Matter Stores 300 Matter Capacity 300 Sight Range 16 Robot Scan Range 14 Terrain Scan Density 10 Evasion (%) 55 Targeting Accuracy 5 Recoil Reduction 2 Item Schematics ----------------- None Robot Schematics ------------------ None Fabricated ------------ Nothing Repaired ---------- Nothing Studied --------- None Alien Tech Used ----------------- None Achievements -------------- None Challenges ------------ None Game ------ Seed CoolantKineticCasing Manual? 0 Play Time 00:24:37 Cumulative 218.3 hours Start 2025.12.21 @ 23:31:57 End 2025.12.21 @ 23:56:35 Sessions 1 Manual Loads 0 Difficulty Rogue Special Mode None Game No. 298 Rogue 297 Adventurer 1 Explorer 0 Win Type - Total 2 Types 1/0/0/1/0/0/0/0/0/0 Lore% 66 Gallery% 62 Achievement% 55 Wizard Run 0 Options --------- Layout 0 ASCII 0 Keyboard 0 Movement Numpad Keybinds 0 Fullscreen 1 Font 24/Smallcaps Map View 76x50 Zoom Use 0% Tactical HUD 1 Map Filters NONE Filters NONE Steam 1 RUN: 7db876c4-ad5c-47ef-b48a-9df3c2107ce3